bitfinex/quotes_BTCUSD_20241024
["timestamp","ask_amount","ask_price","bid_price","bid_amount"]
[1729754531733,0.94336225,67265.0,67264.0,0.00165]
[1729754531937,0.47855067,67265.0,67264.0,0.00165]
[1729754532358,0.43428316,67265.0,67264.0,0.00165]
[1729754533013,0.43428316,67265.0,67264.0,0.00141896]
[1729754533237,0.34295243,67265.0,67264.0,0.00118818]
[1729754533870,0.19428743,67265.0,67264.0,0.00118818]
[1729754534076,0.43428316,67265.0,67264.0,0.00118818]
[1729754537976,0.28561816,67265.0,67264.0,0.00118818]
[1729754538182,0.19428743,67265.0,67264.0,0.00118818]
[1729754538413,0.34295243,67265.0,67264.0,0.01176631]
[1729754538621,0.34295243,67265.0,67264.0,0.00118818]
[1729754539443,0.08988743,67265.0,67264.0,0.00118818]
[1729754539662,0.00758743,67265.0,67264.0,0.00118818]
[1729754539883,0.00758743,67265.0,67264.0,0.01176631]
[1729754540094,0.00758743,67265.0,67264.0,0.00118818]
[1729754540301,0.00758743,67265.0,67264.0,0.01176631]
[1729754542211,0.00143004,67265.0,67264.0,0.40226785]
[1729754542434,0.00143004,67265.0,67264.0,0.31093712]
[1729754542883,0.00643004,67265.0,67264.0,0.31093712]
[1729754543165,0.00643004,67265.0,67264.0,0.31070621]
[1729754543376,0.00758743,67265.0,67264.0,0.31070621]
[1729754544454,0.00643004,67265.0,67264.0,0.31070621]
[1729754544875,0.00758743,67265.0,67264.0,0.31070621]
[1729754545305,0.00758743,67265.0,67264.0,0.16203921]
[1729754546330,0.00841243,67265.0,67264.0,0.31070621]
[1729754547468,0.00036294,67265.0,67264.0,0.31070621]
[1729754549821,0.00036294,67265.0,67264.0,0.31535572]
[1729754552549,0.00036294,67265.0,67264.0,0.31070621]
[1729754552972,0.00036294,67265.0,67264.0,0.31535572]
[1729754553181,0.00036294,67265.0,67264.0,0.31489402]
[1729754553388,0.00036294,67265.0,67264.0,0.16622702]
[1729754555654,0.00036294,67265.0,67264.0,0.31489402]
[1729754560557,0.00036294,67265.0,67264.0,0.31024451]
[1729754560759,0.00036294,67265.0,67264.0,0.31489376]
[1729754561984,0.00036294,67265.0,67264.0,0.40779376]
[1729754562188,0.00036294,67265.0,67264.0,0.49912449]
[1729754562813,0.00036294,67265.0,67264.0,0.40779376]
[1729754563311,0.00036294,67265.0,67264.0,0.40733174]
[1729754563935,0.00036294,67265.0,67264.0,0.40733166]
[1729754571222,0.00036294,67265.0,67264.0,0.40268249]
[1729754571427,0.00036294,67265.0,67264.0,0.40733168]
[1729754572051,0.00036294,67265.0,67264.0,0.40268249]
[1729754572273,0.00036294,67265.0,67264.0,0.31443168]
[1729754573099,0.00036294,67265.0,67264.0,0.31420077]
[1729754573300,0.00036294,67265.0,67264.0,0.31396986]
[1729754580169,0.00036294,67265.0,67264.0,0.16530286]
[1729754581433,0.00036294,67265.0,67264.0,0.16230367]
[1729754581642,0.00036294,67265.0,67264.0,0.16695311]
[1729754581846,0.00036294,67265.0,67264.0,0.16230367]
[1729754582053,0.00036294,67265.0,67264.0,0.16695311]
[1729754583682,0.33725867,67265.0,67264.0,0.0164493]
[1729754583884,0.38164579,67265.0,67264.0,0.0164493]
[1729754584110,0.38164579,67265.0,67264.0,0.00165]
[1729754584111,0.49093935,67265.0,67264.0,0.00165]
[1729754584268,0.42435867,67265.0,67264.0,0.00165]
[1729754584477,0.58840061,67265.0,67264.0,0.00165]
[1729754585143,0.42435867,67265.0,67264.0,0.00165]
[1729754585354,0.5883992,67265.0,67264.0,0.00165]
[1729754586210,0.58839092,67265.0,67264.0,0.00165]
[1729754587031,0.42435867,67265.0,67264.0,0.00165]
[1729754588340,0.49100402,67265.0,67264.0,0.00165]
[1729754588746,0.39967329,67265.0,67264.0,0.00165]
[1729754588946,0.49100402,67265.0,67264.0,0.00165]
[1729754590399,0.49098789,67265.0,67264.0,0.00165]
[1729754592198,0.42435867,67265.0,67264.0,0.00165]
[1729754597574,0.42435867,67265.0,67264.0,0.01167886]
[1729754597806,0.42435867,67265.0,67264.0,0.00165]
[1729754598013,0.42435867,67265.0,67264.0,0.01167886]
[1729754598218,0.42435867,67265.0,67264.0,0.00165]
[1729754598429,0.42435867,67265.0,67264.0,0.01167882]
[1729754598636,0.42435867,67265.0,67264.0,0.00165]
[1729754598839,0.42435867,67265.0,67264.0,0.01167882]
[1729754599046,0.42435867,67265.0,67264.0,0.00165]
[1729754599254,0.42435867,67265.0,67264.0,0.01167882]
[1729754599481,0.42435867,67265.0,67264.0,0.00165]
[1729754603180,0.27569367,67265.0,67264.0,0.00165]
[1729754603364,0.42435867,67265.0,67264.0,0.00165]
[1729754603600,0.42435867,67265.0,67264.0,0.01167865]
[1729754603821,0.42435867,67265.0,67264.0,0.00165]
[1729754604034,0.42435867,67265.0,67264.0,0.01167865]
[1729754604244,0.42435867,67265.0,67264.0,0.00165]
[1729754604458,0.42435867,67265.0,67264.0,0.01167865]
[1729754604663,0.42435867,67265.0,67264.0,0.00165]
[1729754604874,0.42435867,67265.0,67264.0,0.01167865]
[1729754605080,0.42435867,67265.0,67264.0,0.00165]
[1729754605305,0.42435867,67265.0,67264.0,0.01167865]
[1729754605510,0.42435867,67265.0,67264.0,0.00165]
[1729754605716,0.42435867,67265.0,67264.0,0.01167865]
[1729754605924,0.42435867,67265.0,67264.0,0.00165]
[1729754606127,0.42435867,67265.0,67264.0,0.01167865]
[1729754606338,0.42435867,67265.0,67264.0,0.00165]
[1729754606559,0.42435867,67265.0,67264.0,0.01167865]
[1729754607023,0.42435867,67265.0,67264.0,0.00165]
[1729754610965,0.42435867,67265.0,67264.0,0.01167958]
[1729754611211,0.42435867,67265.0,67264.0,0.00165]
[1729754611406,0.42435867,67265.0,67264.0,0.01167958]
[1729754611605,0.42435867,67265.0,67264.0,0.00165]
[1729754612009,0.42435867,67265.0,67264.0,0.01167958]
[1729754612224,0.42435867,67265.0,67264.0,0.00165]
[1729754613704,0.33302794,67265.0,67264.0,0.00165]
[1729754613923,0.42435867,67265.0,67264.0,0.00165]
[1729754614458,0.42435867,67265.0,67264.0,0.01168046]
[1729754614645,0.42435867,67265.0,67264.0,0.00165]
[1729754614866,0.42435867,67265.0,67264.0,0.01168046]
[1729754615085,0.42435867,67265.0,67264.0,0.00165]
[1729754616253,0.46875676,67265.0,67264.0,0.00165]
[1729754617556,0.46875676,67265.0,67264.0,0.01168046]
[1729754617771,0.46875676,67265.0,67264.0,0.00165]
[1729754618009,0.46875676,67265.0,67264.0,0.01168046]
[1729754618249,0.46875676,67265.0,67264.0,0.00165]
[1729754618469,0.46875676,67265.0,67264.0,0.01168046]
[1729754618694,0.46875676,67265.0,67264.0,0.00165]
[1729754618901,0.46877032,67265.0,67264.0,0.01168046]
[1729754619127,0.53646037,67265.0,67264.0,0.00165]
[1729754619365,0.53646037,67265.0,67264.0,0.01168046]
[1729754619366,0.74480927,67265.0,67264.0,0.01168046]
[1729754619566,0.65598597,67265.0,67264.0,0.00165]
[1729754620930,0.58829592,67265.0,67264.0,0.00165]
[1729754622452,0.58828837,67265.0,67264.0,0.00165]
[1729754624487,0.69932801,67265.0,67264.0,0.00165]
[1729754624707,0.69932882,67265.0,67264.0,0.00165]
[1729754625362,0.58828837,67265.0,67264.0,0.00165]
[1729754626476,0.69933507,67265.0,67264.0,0.00165]
[1729754627375,0.69939107,67265.0,67264.0,0.00165]
[1729754628314,0.58833698,67265.0,67264.0,0.00165]
[1729754628538,0.58833698,67265.0,67257.0,0.000825]
[1729754628539,0.52601173,67258.0,67257.0,0.000825]
[1729754628763,0.59865931,67258.0,67257.0,0.000825]
[1729754628989,0.59665931,67258.0,67257.0,0.000825]
[1729754629223,0.68799004,67258.0,67257.0,0.000825]
[1729754629433,0.8211781,67258.0,67257.0,0.000825]
[1729754630153,0.68799004,67258.0,67257.0,0.000825]
[1729754631572,0.83849385,67258.0,67257.0,0.000825]
[1729754632018,0.67451554,67258.0,67257.0,0.000825]
[1729754632239,0.83827994,67258.0,67257.0,0.000825]
[1729754633836,0.5964454,67258.0,67257.0,0.000825]
[1729754634065,0.68777613,67258.0,67257.0,0.000825]
[1729754636410,0.68977613,67258.0,67257.0,0.000825]
[1729754636813,0.68763792,67258.0,67257.0,0.000825]
[1729754637331,0.68963792,67258.0,67257.0,0.000825]
[1729754637565,0.83814173,67258.0,67257.0,0.000825]
[1729754640593,0.84014173,67258.0,67257.0,0.000825]
[1729754641006,0.84006574,67258.0,67257.0,0.000825]
[1729754641269,0.74873501,67258.0,67257.0,0.000825]
[1729754641484,0.99056955,67258.0,67257.0,0.000825]
[1729754641686,0.89923882,67258.0,67257.0,0.000825]
[1729754644795,0.99056955,67258.0,67257.0,0.000825]
[1729754647084,0.89923882,67258.0,67257.0,0.000825]
[1729754647291,0.99056955,67258.0,67257.0,0.000825]
[1729754647927,0.89723882,67258.0,67257.0,0.000825]
[1729754648138,0.98856955,67258.0,67257.0,0.000825]
[1729754648572,0.99056955,67258.0,67257.0,0.000825]
[1729754648808,0.98856955,67258.0,67257.0,0.000825]
[1729754649059,0.83806574,67258.0,67257.0,0.000825]
[1729754652777,0.94876287,67258.0,67257.0,0.000825]
[1729754653248,0.83806574,67258.0,67257.0,0.000825]
[1729754655215,0.94865387,67258.0,67257.0,0.000825]
[1729754655437,0.6846799,67258.0,67257.0,0.000825]
[1729754655653,0.30295978,67258.0,67257.0,0.000825]
[1729754655869,0.258681,67258.0,67257.0,0.000825]
[1729754656778,0.158681,67258.0,67257.0,0.000825]
[1729754659163,0.01,67258.0,67257.0,0.000825]
[1729754659365,0.158681,67258.0,67257.0,0.000825]
[1729754659580,0.158681,67258.0,67257.0,0.00991709]
[1729754659773,0.158681,67258.0,67257.0,0.000825]
[1729754661457,0.153681,67258.0,67257.0,0.000825]
[1729754661670,0.158681,67258.0,67257.0,0.000825]
[1729754663640,0.010825,67264.0,67257.0,0.15132881]
[1729754665984,0.010825,67264.0,67260.0,0.1595745]
[1729754666451,0.159493,67264.0,67260.0,0.1595745]
[1729754666704,0.010825,67264.0,67260.0,0.1595745]
[1729754666912,0.159493,67264.0,67260.0,0.1595745]
[1729754668188,0.148673,67262.0,67260.0,0.1595745]
[1729754668873,0.14867,67263.0,67260.0,0.1595745]
[1729754669507,0.010825,67264.0,67260.0,0.1595745]
[1729754669709,0.005825,67264.0,67260.0,0.1595745]
[1729754669915,0.000825,67264.0,67260.0,0.1595745]
[1729754670397,0.149493,67264.0,67260.0,0.1595745]
[1729754673594,0.000825,67264.0,67260.0,0.1595745]
[1729754674545,0.149495,67264.0,67260.0,0.1595745]
[1729754674755,0.14867,67263.0,67260.0,0.1595745]
[1729754676201,0.000825,67264.0,67260.0,0.1595745]
[1729754676370,0.149493,67264.0,67260.0,0.1595745]
[1729754676781,0.000825,67264.0,67260.0,0.1595745]
[1729754677389,0.000825,67264.0,67260.0,0.3082495]
[1729754677539,0.000825,67264.0,67260.0,0.1595745]
[1729754677941,0.149493,67264.0,67260.0,0.1595745]
[1729754678152,0.000825,67264.0,67261.0,0.148673]
[1729754678363,0.000825,67264.0,67262.0,0.15956497]
[1729754678737,0.000825,67264.0,67263.0,0.24000073]
[1729754678954,0.000825,67264.0,67263.0,0.24500381]
[1729754679159,0.000825,67264.0,67263.0,0.254057]
[1729754679363,0.000825,67264.0,67263.0,0.402727]
[1729754679992,0.000825,67264.0,67263.0,0.254057]
[1729754684771,0.000825,67264.0,67263.0,0.308227]
[1729754689783,0.000825,67264.0,67263.0,0.400327]
[1729754690042,0.000825,67264.0,67263.0,0.476827]
[1729754690256,0.000825,67264.0,67263.0,0.48065244]
[1729754697090,0.000825,67264.0,67263.0,0.48230244]
[1729754700173,0.000825,67264.0,67263.0,0.40580244]
[1729754711375,0.000825,67264.0,67263.0,0.31370244]
[1729754715764,0.000825,67264.0,67263.0,0.31835173]
[1729754717235,0.000825,67264.0,67263.0,0.31452629]
[1729754717469,0.093625,67264.0,67263.0,0.3145263]
[1729754717907,0.33362273,67264.0,67263.0,0.01535249]
[1729754718124,0.41242273,67264.0,67263.0,0.01535249]
[1729754718339,0.41242273,67264.0,67263.0,0.00165]
[1729754718547,0.47898675,67264.0,67263.0,0.00165]
[1729754718973,0.48398675,67264.0,67263.0,0.00165]
[1729754722932,0.70696379,67264.0,67263.0,0.00165]
[1729754723150,0.48398675,67264.0,67263.0,0.00165]
[1729754723372,0.48898675,67264.0,67263.0,0.00165]
[1729754723590,0.42242273,67264.0,67263.0,0.00165]
[1729754723805,0.58615162,67264.0,67263.0,0.00165]
[1729754724269,0.42242273,67264.0,67263.0,0.00165]
[1729754726317,0.48893823,67264.0,67263.0,0.00165]
[1729754727269,0.67477985,67264.0,67263.0,0.00165]
[1729754727480,0.58610641,67264.0,67263.0,0.00165]
[1729754729412,0.67475521,67264.0,67263.0,0.00165]
[1729754732403,0.5859906,67264.0,67263.0,0.00165]
[1729754733364,0.42242273,67264.0,67263.0,0.00165]
[1729754733810,0.58597084,67264.0,67263.0,0.00165]
[1729754734257,0.42242273,67264.0,67263.0,0.00165]
[1729754735385,0.48886912,67264.0,67263.0,0.00165]
[1729754743137,0.42242273,67264.0,67263.0,0.00165]
[1729754743356,0.58585721,67264.0,67263.0,0.00165]
[1729754743795,0.67440779,67264.0,67263.0,0.00165]
[1729754745809,0.58307706,67264.0,67263.0,0.00165]
[1729754746047,0.67440779,67264.0,67263.0,0.00165]
[1729754749017,1.0587028,67264.0,67263.0,0.00165]
[1729754749217,0.92769302,67264.0,67263.0,0.00165]
[1729754749441,1.06051699,67264.0,67263.0,0.00165]
[1729754749661,1.06251699,67264.0,67263.0,0.00165]
[1729754749868,0.92969302,67264.0,67263.0,0.00165]
[1729754750090,0.98671438,67264.0,67263.0,0.00165]
[1729754751428,0.99050092,67264.0,67263.0,0.00165]
[1729754751653,0.98850092,67264.0,67263.0,0.00165]
[1729754751861,0.99050092,67264.0,67263.0,0.00165]
[1729754752755,0.92769302,67264.0,67263.0,0.00165]
[1729754753195,0.83636229,67264.0,67263.0,0.00165]
[1729754753385,0.83632167,67264.0,67263.0,0.00165]
[1729754753831,0.9276524,67264.0,67263.0,0.00165]
[1729754755342,1.06042943,67264.0,67263.0,0.00165]
[1729754755566,1.06242943,67264.0,67263.0,0.00165]
[1729754755795,0.9296524,67264.0,67263.0,0.00165]
[1729754756010,0.9276524,67264.0,67263.0,0.00165]
[1729754756888,0.83632167,67264.0,67263.0,0.00165]
[1729754757095,0.96910037,67264.0,67263.0,0.00165]
[1729754759223,0.83632167,67264.0,67263.0,0.00165]
[1729754759676,0.9276524,67264.0,67263.0,0.00165]
[1729754759956,0.83632167,67264.0,67263.0,0.00165]
[1729754762298,0.85959822,67264.0,67263.0,0.00165]
[1729754763917,1.09182637,67264.0,67263.0,0.00165]
[1729754765237,1.09382637,67264.0,67263.0,0.00165]
[1729754765414,1.09182637,67264.0,67263.0,0.00165]
[1729754765654,1.11682637,67264.0,67263.0,0.00165]
[1729754765852,0.434374,67261.0,67260.0,0.00165]
[1729754766079,1.10443821,67261.0,67260.0,0.00165]
[1729754766302,1.25399307,67261.0,67260.0,0.00165]
[1729754766736,1.10443821,67261.0,67260.0,0.00165]
[1729754767207,1.25399307,67261.0,67260.0,0.00165]
[1729754768115,1.3453238,67261.0,67260.0,0.00165]
[1729754768334,1.3453238,67261.0,67257.0,0.000825]
[1729754768335,0.012,67258.0,67257.0,0.000825]
[1729754768562,0.012,67258.0,67253.0,0.000825]
[1729754768563,0.64005146,67254.0,67253.0,0.000825]
[1729754768768,0.9539504,67254.0,67253.0,0.000825]
[1729754769000,1.10345226,67254.0,67253.0,0.000825]
[1729754769232,1.25395607,67254.0,67253.0,0.000825]
[1729754769430,1.10445421,67254.0,67253.0,0.000825]
[1729754769797,0.92179275,67254.0,67253.0,0.000825]
[1729754769999,1.25395607,67254.0,67253.0,0.000825]
[1729754770399,1.10445421,67254.0,67253.0,0.000825]
[1729754771981,1.25395607,67254.0,67253.0,0.000825]
[1729754772383,1.10445421,67254.0,67253.0,0.000825]
[1729754774076,0.160698,67250.0,67249.0,0.001648]
[1729754774293,1.08290548,67250.0,67249.0,0.001648]
[1729754775821,1.08290548,67250.0,67233.0,0.22380104]
[1729754775822,0.153734,67234.0,67233.0,0.22380104]
[1729754776047,0.24506473,67234.0,67233.0,0.22380104]
[1729754776276,0.24506473,67234.0,67233.0,0.000824]
[1729754785720,0.33639546,67234.0,67233.0,0.000824]
[1729754785946,0.24506473,67234.0,67233.0,0.000824]
[1729754788026,0.153734,67234.0,67233.0,0.000824]
[1729754788247,0.24506473,67234.0,67233.0,0.000824]
[1729754801893,0.33966473,67234.0,67233.0,0.000824]
[1729754805261,0.36684276,67234.0,67233.0,0.000824]
[1729754805967,0.56264177,67234.0,67233.0,0.000824]
[1729754806190,0.58649927,67234.0,67233.0,0.000824]
[1729754806422,0.78629927,67234.0,67233.0,0.000824]
[1729754806652,0.78829927,67234.0,67233.0,0.000824]
[1729754809129,0.258749,67227.0,67226.0,0.000824]
[1729754809357,0.78831427,67227.0,67226.0,0.000824]
[1729754809585,0.78631427,67227.0,67226.0,0.000824]
[1729754810044,0.78831427,67227.0,67226.0,0.000824]
[1729754810747,0.9516497,67227.0,67226.0,0.000824]
[1729754810980,1.10215351,67227.0,67226.0,0.000824]
[1729754811644,0.43103746,67215.0,67211.0,0.22297704]
[1729754811873,0.6828679,67215.0,67211.0,0.22297704]
[1729754812331,0.69937289,67215.0,67208.0,0.000841]
[1729754812545,0.78783794,67215.0,67208.0,0.000841]
[1729754813268,0.96134175,67215.0,67208.0,0.000841]
[1729754813946,0.8728767,67215.0,67208.0,0.000841]
[1729754814175,1.26867791,67215.0,67208.0,0.000841]
[1729754814388,0.9349821,67215.0,67208.0,0.000841]
[1729754814596,0.8727767,67215.0,67208.0,0.000841]
[1729754815493,0.96119978,67215.0,67208.0,0.000841]
[1729754815726,0.8727767,67215.0,67208.0,0.000841]
[1729754817197,0.9507767,67215.0,67208.0,0.000841]
[1729754817438,1.10128051,67215.0,67208.0,0.000841]
[1729754817685,1.10328051,67215.0,67208.0,0.000841]
[1729754818378,0.283678,67214.0,67208.0,0.000841]
[1729754818604,0.63605046,67209.0,67208.0,0.000841]
[1729754818824,1.10016322,67209.0,67208.0,0.000841]
[1729754820529,1.10216322,67209.0,67208.0,0.000841]
[1729754820778,0.91750176,67209.0,67208.0,0.000841]
[1729754821011,0.94965941,67209.0,67208.0,0.000841]
[1729754821719,0.24504673,67197.0,67196.0,0.000842]
[1729754822635,0.26834297,67197.0,67196.0,0.000842]
[1729754823892,0.26769903,67197.0,67196.0,0.000842]
[1729754824112,0.1763683,67197.0,67196.0,0.000842]
[1729754824337,0.26769903,67197.0,67196.0,0.000842]
[1729754827004,0.52320284,67197.0,67196.0,0.000842]
[1729754827221,0.66606232,67197.0,67196.0,0.000842]
[1729754828105,0.43187211,67197.0,67196.0,0.000842]
[1729754828544,0.52320284,67197.0,67196.0,0.000842]
[1729754832713,0.54620284,67197.0,67196.0,0.000842]
[1729754832948,0.72090284,67197.0,67196.0,0.000842]
[1729754833645,1.03521061,67197.0,67196.0,0.000842]
[1729754833859,1.03521061,67197.0,67195.0,0.00035681]
[1729754833860,0.45577406,67196.0,67195.0,0.00035681]
[1729754834080,0.45577406,67196.0,67185.0,0.000842]
[1729754834081,0.00925606,67186.0,67185.0,0.000842]
[1729754834309,0.78696133,67186.0,67185.0,0.000842]
[1729754834582,0.78696133,67186.0,67185.0,0.01035179]
[1729754834841,0.78896133,67186.0,67185.0,0.000842]
[1729754835098,0.60429987,67186.0,67185.0,0.000842]
[1729754835309,0.5808306,67186.0,67185.0,0.000842]
[1729754836506,0.62578944,67186.0,67185.0,0.000842]
[1729754837435,0.68321276,67186.0,67185.0,0.000842]
[1729754844429,0.62578944,67186.0,67185.0,0.000842]
[1729754848050,0.62078944,67186.0,67185.0,0.000842]
[1729754849176,0.53988944,67186.0,67185.0,0.000842]
[1729754851256,0.74058944,67186.0,67185.0,0.000842]
[1729754851503,0.32582006,67175.0,67174.0,0.22297704]
[1729754851732,0.61261344,67175.0,67174.0,0.22297704]
[1729754852006,0.32584006,67166.0,67165.0,0.000842]
[1729754852229,0.56212963,67166.0,67165.0,0.000842]
[1729754852476,0.38942963,67166.0,67165.0,0.000842]
[1729754852704,0.25314006,67166.0,67165.0,0.000842]
[1729754859814,0.15314006,67166.0,67165.0,0.000842]
[1729754860071,0.15314006,67166.0,67165.0,0.149729]
[1729754860072,0.00425606,67166.0,67165.0,0.149729]
[1729754860304,0.00425606,67166.0,67165.0,0.01526279]
[1729754860791,0.00425606,67166.0,67165.0,0.16414979]
[1729754861692,0.00425606,67166.0,67165.0,0.01526279]
[1729754861908,0.00425606,67166.0,67165.0,0.16414979]
[1729754863059,0.00425606,67166.0,67165.0,0.01526279]
[1729754864178,0.00425606,67169.0,67165.0,0.02026279]
[1729754864396,0.00425606,67171.0,67170.0,0.148875]
[1729754864638,0.00425606,67171.0,67168.0,0.59552]
[1729754864899,0.22297704,67176.0,67167.0,0.13630554]
[1729754864900,0.00425606,67173.0,67172.0,0.242171]
[1729754865139,0.00425606,67173.0,67172.0,0.321971]
[1729754865363,0.00425606,67173.0,67172.0,0.33634899]
[1729754865812,0.00425606,67173.0,67172.0,0.18747799]
[1729754866035,0.00425606,67174.0,67172.0,0.18747799]
[1729754866508,0.00425606,67175.0,67173.0,0.148868]
[1729754867005,0.00425606,67175.0,67174.0,0.01436772]
[1729754867316,0.00425606,67175.0,67174.0,0.16323472]
[1729754867540,0.00425606,67175.0,67174.0,0.01436772]
[1729754868011,0.00425606,67175.0,67172.0,0.1731]
[1729754868222,0.00425606,67177.0,67175.0,0.148864]
[1729754868451,0.00425606,67177.0,67173.0,0.005]
[1729754868452,0.00425606,67177.0,67173.0,0.01937152]
[1729754868667,0.00425606,67177.0,67176.0,0.01436014]
[1729754868887,0.00425606,67177.0,67173.0,0.153868]
[1729754869113,0.00425606,67177.0,67176.0,0.01436014]
[1729754869334,0.00425606,67177.0,67176.0,0.005]
[1729754869553,0.00425606,67177.0,67176.0,0.01936014]
[1729754869824,0.00425606,67177.0,67176.0,0.005]
[1729754870061,0.00425606,67177.0,67176.0,0.01936014]
[1729754870277,0.00425606,67177.0,67176.0,0.005]
[1729754870493,0.00425606,67177.0,67176.0,0.01936014]
[1729754870746,0.22297704,67183.0,67176.0,0.005]
[1729754870953,0.22297704,67183.0,67177.0,0.005]
[1729754870954,0.00425606,67181.0,67177.0,0.005]
[1729754871171,0.00425606,67181.0,67177.0,0.153859]
[1729754871387,0.00425606,67181.0,67178.0,0.01434298]
[1729754872045,0.15310706,67181.0,67178.0,0.01434298]
[1729754872678,0.00425606,67181.0,67178.0,0.01434298]
[1729754872900,0.15310806,67181.0,67178.0,0.01434298]
[1729754873333,0.00425606,67181.0,67179.0,0.005]
[1729754873556,0.00425606,67181.0,67179.0,0.30271]
[1729754873809,0.001652,67186.0,67185.0,0.005]
[1729754874247,0.001652,67186.0,67185.0,0.16815641]
[1729754874496,0.001652,67186.0,67185.0,0.153842]
[1729754874948,0.001652,67186.0,67185.0,0.01931441]
[1729754875385,0.001652,67186.0,67185.0,0.16815641]
[1729754875594,0.001652,67186.0,67185.0,0.01931441]
[1729754875791,0.001652,67186.0,67185.0,0.16815641]
[1729754876221,0.001652,67186.0,67185.0,0.01931441]
[1729754877344,0.150492,67186.0,67185.0,0.01931441]
[1729754879148,0.001652,67186.0,67185.0,0.01931441]
[1729754879578,0.150492,67186.0,67185.0,0.01931441]
[1729754880657,0.15474806,67186.0,67185.0,0.01931441]
[1729754880888,0.15474806,67186.0,67185.0,0.01431441]
[1729754881151,0.00425606,67177.0,67176.0,0.005]
[1729754881583,0.00425606,67177.0,67176.0,0.01898526]
[1729754881804,0.00425606,67177.0,67176.0,0.005]
[1729754882023,0.00425606,67177.0,67176.0,0.01898526]
[1729754882272,0.00425606,67177.0,67176.0,0.16784726]
[1729754882563,0.00425606,67177.0,67176.0,0.01898526]
[1729754882773,0.15311606,67177.0,67176.0,0.01898526]
[1729754883006,0.00425606,67177.0,67176.0,0.16784726]
[1729754883220,0.00425606,67177.0,67176.0,0.01898526]
[1729754884313,0.00425606,67177.0,67176.0,0.16784726]
[1729754885611,0.00425606,67177.0,67176.0,0.01898526]
[1729754886337,0.00425606,67177.0,67176.0,0.16784726]
[1729754887714,0.06636188,67187.0,67177.0,0.29772]
[1729754887957,0.2272331,67184.0,67183.0,0.005]
[1729754888194,0.04588985,67186.0,67184.0,0.148844]
[1729754888195,0.00425606,67185.0,67184.0,0.148844]
[1729754888410,0.001652,67186.0,67185.0,0.148842]
[1729754888902,0.00590806,67186.0,67185.0,0.16279312]
[1729754889166,0.001652,67186.0,67185.0,0.16279312]
[1729754889401,0.00590806,67186.0,67185.0,0.16279312]
[1729754889842,0.00590806,67186.0,67185.0,0.01395112]
[1729754893657,0.00590806,67186.0,67185.0,0.01395112]
[1729754896036,0.00590806,67186.0,67185.0,0.16779312]
[1729754896271,0.001652,67186.0,67185.0,0.16779312]
[1729754896495,0.001652,67186.0,67185.0,0.01895112]
[1729754896712,0.001652,67186.0,67185.0,0.01977612]
[1729754896933,0.001652,67186.0,67185.0,0.16861812]
[1729754899374,0.001652,67186.0,67185.0,0.01977612]
[1729754899800,0.001652,67186.0,67185.0,0.16861812]
[1729754900004,0.001652,67186.0,67185.0,0.01977612]
[1729754901982,0.001652,67186.0,67185.0,0.16861812]
[1729754902622,0.001652,67186.0,67185.0,0.31912193]
[1729754902840,0.001652,67186.0,67185.0,0.48922193]
[1729754903088,0.001652,67186.0,67185.0,0.48996587]
[1729754903312,0.001652,67186.0,67185.0,0.49196587]
[1729754903774,0.001652,67186.0,67185.0,0.48996587]
[1729754904199,0.001652,67186.0,67185.0,0.49696587]
[1729754904403,0.001652,67186.0,67185.0,0.63327141]
[1729754905030,0.001652,67186.0,67185.0,0.49696587]
[1729754905468,0.001652,67186.0,67185.0,0.63327141]
[1729754905947,0.001652,67186.0,67185.0,0.49696587]
[1729754910131,0.001652,67186.0,67185.0,0.64327141]
[1729754910766,0.001652,67195.0,67194.0,0.16156594]
[1729754910986,0.22297704,67199.0,67198.0,0.01274394]
[1729754911212,0.2,67200.0,67199.0,0.56321654]
[1729754911435,0.2,67200.0,67199.0,0.72938494]
[1729754915349,0.2,67200.0,67199.0,0.73325421]
[1729754915776,0.2,67200.0,67199.0,0.73399815]
[1729754919044,0.20165,67200.0,67199.0,0.73399815]
[1729754919490,0.20165,67200.0,67199.0,0.76699815]
[1729754919713,0.22297704,67213.0,67199.0,0.76699815]
[1729754919714,0.22297704,67213.0,67207.0,0.16153794]
[1729754919959,0.22297704,67213.0,67207.0,0.75832812]
[1729754920220,0.22297704,67213.0,67207.0,0.87893061]
[1729754920420,0.22297704,67223.0,67207.0,0.90193061]
[1729754922296,0.22297704,67223.0,67222.0,0.29580948]
[1729754922508,0.22297704,67223.0,67222.0,0.44631329]
[1729754922956,0.22297704,67230.0,67229.0,0.005]
[1729754923192,0.22297704,67230.0,67229.0,0.30424881]
[1729754923454,0.077,67232.0,67231.0,0.15374]
[1729754923682,0.077,67232.0,67231.0,0.30424381]
[1729754924151,0.077,67232.0,67231.0,0.31768728]
[1729754925470,0.092,67235.0,67234.0,0.148734]
[1729754925676,0.092,67235.0,67234.0,0.30423781]
[1729754926089,0.092,67235.0,67234.0,0.31763226]
[1729754931025,0.09365,67235.0,67234.0,0.31763226]
[1729754941268,0.242382,67235.0,67234.0,0.01839445]
[1729754941478,0.09365,67235.0,67234.0,0.01839445]
[1729754941694,0.242382,67235.0,67234.0,0.01839445]
[1729754941908,0.09365,67235.0,67234.0,0.01839445]
[1729754942121,0.242382,67235.0,67234.0,0.01839445]
[1729754942614,0.09365,67235.0,67234.0,0.01839445]
[1729754943252,0.09365,67235.0,67234.0,0.005]
[1729754943653,0.09365,67235.0,67234.0,0.153734]
[1729754944166,0.09365,67235.0,67234.0,0.16712993]
[1729754959594,0.09365,67235.0,67234.0,0.01839593]
[1729754960468,0.09365,67235.0,67234.0,0.16712993]
[1729754960683,0.09365,67235.0,67234.0,0.14102044]
[1729754960900,0.09365,67235.0,67234.0,0.15307232]
[1729754973127,0.00165,67235.0,67234.0,0.39859042]
[1729754973374,0.00165,67235.0,67234.0,0.40261605]
[1729754974071,0.00165,67235.0,67234.0,0.54378289]
[1729754977494,0.00165,67235.0,67234.0,0.54460689]
[1729754977703,0.00165,67235.0,67234.0,0.49814005]
[1729754981150,0.00165,67235.0,67234.0,0.59814005]
[1729754982231,0.00165,67235.0,67234.0,0.67924005]
[1729754984287,0.00165,67235.0,67234.0,0.59614005]
[1729754984491,0.00165,67235.0,67234.0,0.50144005]
[1729754984945,0.00165,67235.0,67234.0,0.50344005]
[1729754985856,0.00165,67235.0,67234.0,0.50144005]
[1729754986112,0.00165,67235.0,67234.0,0.50344005]
[1729754986770,0.00165,67235.0,67234.0,0.67554005]
[1729754986981,0.00165,67235.0,67234.0,0.67354005]